{"text_format":"1","workbook":"xlsx","n_sheets":3,"sheets":["TDOT Change Order","TDOT Final Balancing CO","TDOT Supplemental Agreement"],"not_rendered":{"charts":0,"images":0,"macros":1,"external_links":0,"defined_names":4,"comments":3,"pivot_tables":0},"unopened":[],"bounds":{"document_bytes":16777216,"sheet_cells":100000,"rows_first":2000,"rows_last":500,"rows_between":2000,"halvings":0,"cell_chars":16384,"cell_head_chars":4096},"cells_cut":0,"cells_raw":0,"read":"whole","date_system":"1900"}

{"sheet":"TDOT Change Order","index":0,"n_rows":167,"n_cols":20,"rows_kept":167,"cut":false,"hidden":false,"merged":[[0,0,0,9],[0,11,7,14],[1,0,1,9],[2,0,2,1],[2,2,2,4],[2,6,2,7],[2,8,2,9],[4,0,4,1],[4,6,4,7],[6,0,6,1],[6,6,6,7],[6,2,7,4],[6,8,7,9],[4,2,5,4],[4,8,5,9],[16,1,16,3],[16,4,16,5],[16,7,16,8],[8,11,8,14],[10,0,11,9],[12,1,12,3],[12,4,12,5],[12,7,12,8],[13,1,13,3],[13,4,13,5],[13,7,13,8],[11,11,16,14],[14,1,14,3],[14,4,14,5],[14,7,14,8],[15,1,15,3],[15,4,15,5],[15,7,15,8],[27,2,27,3],[17,1,17,3],[17,4,17,5],[17,7,17,8],[18,0,18,3],[18,4,18,8],[19,0,21,3],[19,4,19,8],[20,4,20,8],[21,4,21,8],[22,0,23,9],[24,1,24,3],[24,6,24,8],[26,2,26,3],[26,6,26,8],[73,8,73,9],[54,0,54,9],[55,0,55,9],[56,0,56,9],[59,0,59,3],[59,6,59,9],[61,0,61,3],[61,6,61,9],[66,0,66,3],[66,6,66,9],[68,0,68,3],[68,6,68,9],[71,0,72,9],[50,2,50,3],[50,4,50,5],[50,6,50,7],[50,8,50,9],[51,0,51,9],[53,0,53,9],[28,2,28,3],[30,0,30,9],[32,0,32,2],[36,4,37,9],[43,1,43,3],[45,7,46,9]]}
["CHANGE ORDER NUMBER ONE (1)",null,null,null,null,null,null,null,null,null,null,"Change Order (Construction Project) - \"A written order to the Contractor covering changes in the plans, specifications, or proposal quantities and establishing the basis of payment and contract time adjustment, if any, for work within the scope of the contract and necessary to complete the project.\" A change order, in this case, becomes a part of the contract when signed by the contractor, owner, engineer, and TDOT. "]
["PROJECT TITLE"]
["TAD PROJECT NO. :",null,"XX-555-XXXX-XX",null,null,null,"DATE PREPARED:",null,"(DATE)"]
[]
["AIRPORT:",null,"(CHOOSE FROM DROPDOWN OR TYPE IT)",null,null,null,"CONTRACTOR:",null,"(TYPE COMPANY NAME HERE)"]
[]
["ADDRESS:",null,{"$f":"IFERROR(VLOOKUP($C$5,S89:T167,2,FALSE),\"TYPE AIRPORT ADDRESS\")","v":"TYPE AIRPORT ADDRESS"},null,null,null,"ADDRESS:",null,"(TYPE ADDRESS NAME HERE)"]
[]
[null,null,null,null,null,null,null,null,null,null,null,"FAA AC 150-5370-10H"]
[]
["THE PURPOSE OF THIS CHANGE ORDER IS TO ESTABLISH UNIT PRICES FOR ITEMS OF WORK NOT COVERED BY THE ORIGINAL CONTRACT AND TO EXTEND CONTRACT TIME. YOU, THE LICENSED CONTRACTOR, ARE REQUESTED TO PERFORM THE FOLLOWING DESCRIBED WORK UPON RECEIPT OF AN APPROVED COPY OF THIS DOCUMENT OR AS DIRECTED BY THE ENGINEER:"]
[null,null,null,null,null,null,null,null,null,null,null,"CHANGE YOUR PRINT AREA FOR DOCUMENT THAT NEEDS TO BE MULTIPLE PAGES TO ENSURE TEXT RESOLUTION IS NOT COMPROMISED! PAGE LAYOUT/PRINT AREA/SET PRINT AREA."]
["ITEM NO.","ITEM DESCRIPTION",null,null,"UNIT",null,"UNIT PRICE","QUANTITY",null,"AMOUNT "]
[null,null,null,null,null,null,0,"X.XX",null,{"$f":"G14*H14","v":{"$error":"#VALUE!"}}]
[null,null,null,null,null,null,0,"X.XX",null,{"$f":"G15*H15","v":{"$error":"#VALUE!"}}]
[null,null,null,null,null,null,0,"X.XX",null,{"$f":"G16*H16","v":{"$error":"#VALUE!"}}]
[null,null,null,null,null,null,0,"X.XX",null,{"$f":"G17*H17","v":{"$error":"#VALUE!"}}]
[null,null,null,null,null,null,0,"X.XX",null,{"$f":"G18*H18","v":{"$error":"#VALUE!"}}]
["BRIEF DESCRIPTION, LOCATION, AND REASON FOR CHANGE ORDER:",null,null,null,"CHANGE ORDER # __ TOTAL",null,null,null,null,{"$f":"SUM(J14:J18)","v":{"$error":"#VALUE!"}}]
[null,null,null,null,"PREVIOUS CHANGE ORDER(S) TOTAL",null,null,null,null,0]
[null,null,null,null,"ORIGINAL CONTRACT AWARDED",null,null,null,null,0]
[null,null,null,null,"REVISED CONTRACT THROUGH CHANGE ORDER # __",null,null,null,null,{"$f":"SUM(J19:J21)","v":{"$error":"#VALUE!"}}]
["SUBJECT TO THE CONDITIONS SET FORTH BELOW, AN EQUITABLE ADJUSTMENT IS ESTABLISHED AS FOLLOWS:"]
[]
[null,"CONTRACT  PRICE",null,null,null,null,"CONTRACT  TIME"]
[]
[]
[null,null,0,null,null,null,null,"X.XX","CALENDAR DAYS"]
[null,null,0,null,null,null,null,"X.XX","CALENDAR DAYS"]
[]
["CHANGES ARE SHOWN ON DRAWING(S), WHICH ARE ATTACHED (AS APPLICABLE)."]
[]
["ADDITIONAL JUSTIFICATION FOR CHANGE:"]
[]
["1. IS THE CHANGE ORDER SCOPE APPROPRIATE? (DOES THE CHANGE ORDER HELP COMPLETE THE ORIGINAL SCOPE OF THE PROJECT?)"]
[]
["2. JUSTIFICATIONS FOR UNIT PRICES OR TOTAL COST:"]
[]
["3. DOES THE SPONSOR HAVE THE LOCAL SHARE FOR THIS CONTRACT CHANGE?"]
[]
["4. HAS CONSENT OF SURETY BEEN OBTAINED?",null,null,null,null,null,""]
[]
["5. WILL THIS AFFECT THE INSURANCE COVERAGE?"]
["5a.","IF YES, WILL THE POLICIES BE EXTENDED?"]
[]
["6. IS THE DBE GOAL STILL ACHIEVEABLE WITH THIS CHANGE ORDER?",null,null,null,null,null,"IF NO, EXPLAIN:"]
[]
["7. BUY AMERICAN ANALYSIS"]
[]
["8. HAS THIS CHANGE ORDER BEEN DISCUSSED WITH THE TDOT PROJECT MANAGER?"]
[null,null,"IF SO, WHEN?",null,null,null,"IF SO, WITH WHOM?"]
["THE FOREGOING IS IN ACCORDANCE WITH YOUR PROPOSAL DATED AND LISTED BELOW:"]
[]
["A.  THE AFOREMENTIONED CHANGE AND WORK AFFECTED THEREBY SHALL BECOME AN AMENDMENT TO THE CONTRACT AND ARE SUBJECT TO ALL  "]
["      CONTRACT STIPULATIONS AND CONVENANTS;"]
["B.  THE RIGHTS OF THE OWNER (SPONSOR) ARE NOT PREJUDICED;"]
["C.  ALL CLAIMS AGAINST THE OWNER WHICH ARE INCIDENTAL TO OR AS A CONSEQUENCE OF THE AFOREMENTIONED CHANGE ARE SATISFIED."]
["CONTRACTOR",null,null,null,null,null,"OWNER (AIRPORT SPONSOR)"]
[null,null,null,null,null,null,""]
[]
[]
[]
["DATE",null,null,null,null,null,"DATE"]
[]
["RECOMMENDED FOR APPROVAL BY:",null,null,null,null,null,"APPROVAL DETERMINATION:"]
[]
[]
["(AIRPORT SPONSOR'S ENGINEER/CONSULTANT)",null,null,null,null,null,"TENNESSEE DEPARTMENT OF TRANSPORTATION AERONAUTICS DIVISION"]
[]
["DATE",null,null,null,null,null,"DATE"]
[]
["NOTE: THIS DOCUMENT REQUIRES TDOT AERONAUTICS APPROVAL PRIOR TO CONSTRUCTION, OTHERWISE STATE AND/OR FEDERAL PARTICIPATION FOR ADDITIONAL WORK MAY BE JEOPARDIZED.  PROCEEDING WITH A CONTRACT CHANGE PRIOR TO TDOT AERONAUTICS APPROVAL IS AT THE SPONSOR'S RISK."]
[]
[null,null,null,null,null,null,null,null,"FORM UPDATED 01/06/2025"]
["DT-1945 (Rev. 01/2025)",null,null,null,null,null,null,null,null,"RDA 11083"]
[]
[]
[]
[]
[]
[]
[]
[]
[]
[]
[]
[]
[null,null,null,null,null,null,null,null,null,null,null,null,null,null,null,null,null,null,"(CHOOSE FROM DROPDOWN OR TYPE IT)"]
[null,null,null,null,null,null,null,null,null,null,null,null,null,null,null,null,null,null,"Abernathy Field","1736 Bethel Rd, Pulaski, TN 38478"]
[null,null,null,null,null,null,null,null,null,null,null,null,null,null,null,null,null,null,"Arnold Field","155 Co-Op Drive, Halls TN 38040"]
[null,null,null,null,null,null,null,null,null,null,null,null,null,null,null,null,null,null,"Beech River Regional","1600 Mount Ararat Rd, Darden, TN 38328"]
[null,null,null,null,null,null,null,null,null,null,null,null,null,null,null,null,null,null,"Benton County Airport","275 Airport Dr, Camden, TN 38320"]
[null,null,null,null,null,null,null,null,null,null,null,null,null,null,null,null,null,null,"Centerville Municipal Airport","2650 Airport Rd, Centerville, TN 37033"]
[null,null,null,null,null,null,null,null,null,null,null,null,null,null,null,null,null,null,"Charles W. Baker Field","3870 Fite Rd, Millington, TN 38053"]
[null,null,null,null,null,null,null,null,null,null,null,null,null,null,null,null,null,null,"Chattanooga Metropolitan Airport (Lovell Field)","1001 Airport Rd, Chattanooga, Tn 37421"]
[null,null,null,null,null,null,null,null,null,null,null,null,null,null,null,null,null,null,"Chilhowee Gliderport","8261 Highway 411, Benton, TN 37307 "]
[null,null,null,null,null,null,null,null,null,null,null,null,null,null,null,null,null,null,"Clarksville Regional Airport","200 Outlaw Field Road, Clarksville, TN 37042"]
[null,null,null,null,null,null,null,null,null,null,null,null,null,null,null,null,null,null,"Cleveland Regional Jetport","251 Dry Valley Rd NE, Cleveland, TN 37312"]
[null,null,null,null,null,null,null,null,null,null,null,null,null,null,null,null,null,null,"Clifton Airport (Hassell Field)","Airport Rd, Clifton, TN 38425"]
[null,null,null,null,null,null,null,null,null,null,null,null,null,null,null,null,null,null,"Collegedale Municipal Airport","5100 Bess Moore Rd, Apison, TN 37302"]
[null,null,null,null,null,null,null,null,null,null,null,null,null,null,null,null,null,null,"Colonel Tommy C Stiner Airfield","2707 Jacksboro Pike, Jacksboro, TN 37757"]
[null,null,null,null,null,null,null,null,null,null,null,null,null,null,null,null,null,null,"Covington Municipal Airport","169 Airport Parkway Drive. Covington, TN 38019"]
[null,null,null,null,null,null,null,null,null,null,null,null,null,null,null,null,null,null,"Crossville Memorial Airport (Whitson Field)","2409 Sparta Hwy, Crossville, TN 38572"]
[null,null,null,null,null,null,null,null,null,null,null,null,null,null,null,null,null,null,"Dallas Bay Skypark","1824 E Crabtree Rd, Hixson TN 37343"]
[null,null,null,null,null,null,null,null,null,null,null,null,null,null,null,null,null,null,"Dickson Municipal Airport","2372 Sylvia Rd, Dickson, TN 37055"]
[null,null,null,null,null,null,null,null,null,null,null,null,null,null,null,null,null,null,"Downtown Island Airport","2701 Spence Pl, Knoxville, TN 37920"]
[null,null,null,null,null,null,null,null,null,null,null,null,null,null,null,null,null,null,"Dyersburg Municipal Airport","315 Airport Rd, Dyersburg, TN 38024"]
[null,null,null,null,null,null,null,null,null,null,null,null,null,null,null,null,null,null,"Ellington Airport","1877 Franklin Pike, Lewisburg, TN 37091"]
[null,null,null,null,null,null,null,null,null,null,null,null,null,null,null,null,null,null,"Everett-Stewart Airport","1489 Airport Circle Rd Ste 1, Union City, TN 38261"]
[null,null,null,null,null,null,null,null,null,null,null,null,null,null,null,null,null,null,"Fayette County Airport","1075 Airport Rd, Somerville, TN 38068"]
[null,null,null,null,null,null,null,null,null,null,null,null,null,null,null,null,null,null,"Fayetteville Municipal Airport","37 Airport Rd, Fayetteville, TN 37334"]
[null,null,null,null,null,null,null,null,null,null,null,null,null,null,null,null,null,null,"Gatlinburg-Pigeon Forge Airport","134 Air Museum Way, Sevierville, TN 37862"]
[null,null,null,null,null,null,null,null,null,null,null,null,null,null,null,null,null,null,"General Dewitt Spain Airport","2787 N 2nd St, Memphis, TN 38127"]
[null,null,null,null,null,null,null,null,null,null,null,null,null,null,null,null,null,null,"Gibson County Airport","56 Airport Rd, Milan, TN 38358"]
[null,null,null,null,null,null,null,null,null,null,null,null,null,null,null,null,null,null,"Greeneville Municipal Airport","246 Airport Rd, Greeneville, TN 37745"]
[null,null,null,null,null,null,null,null,null,null,null,null,null,null,null,null,null,null,"Hawkins County Airport","675 Main St, Surgoinsville, TN 37873"]
[null,null,null,null,null,null,null,null,null,null,null,null,null,null,null,null,null,null,"Henry County Airport","1949 Diggs Rd, Paris, TN 38242"]
[null,null,null,null,null,null,null,null,null,null,null,null,null,null,null,null,null,null,"Houston County Airport","P.O. Box 366, Erin, TN 37042"]
[null,null,null,null,null,null,null,null,null,null,null,null,null,null,null,null,null,null,"Humboldt Municipal Airport","4655 E Main St, Humboldt, Tn 38343"]
[null,null,null,null,null,null,null,null,null,null,null,null,null,null,null,null,null,null,"Humphreys County Airport","1005 Airport Rd, Waverly, TN 37185"]
[null,null,null,null,null,null,null,null,null,null,null,null,null,null,null,null,null,null,"Jackson County Airport","860 Big Bottom Rd, Gainesboro, TN 38562"]
[null,null,null,null,null,null,null,null,null,null,null,null,null,null,null,null,null,null,"Jackson Regional Airport","308 Grady Montgomery Dr, Jackson, TN 38301"]
[null,null,null,null,null,null,null,null,null,null,null,null,null,null,null,null,null,null,"Jamestown Municipal Airport","125 Airport Rd, Jamestown, TN 38556"]
[null,null,null,null,null,null,null,null,null,null,null,null,null,null,null,null,null,null,"John A. Baker Field (Paul Bridges Field)","1192 W Main St., Hohenwald, TN 38462"]
[null,null,null,null,null,null,null,null,null,null,null,null,null,null,null,null,null,null,"John C. Tune Airport","110 Tune Airport Dr, Nashville, TN 37209"]
[null,null,null,null,null,null,null,null,null,null,null,null,null,null,null,null,null,null,"Johnson City Stolport","3191 Watauga Rd, Johnson City, TN 37601"]
[null,null,null,null,null,null,null,null,null,null,null,null,null,null,null,null,null,null,"Johnson County Airport","611 Airport Rd, Mountain City, TN 37683"]
[null,null,null,null,null,null,null,null,null,null,null,null,null,null,null,null,null,null,"Lafayette Municipal Airport","1000 Airport Rd, Lafayette, TN 37083"]
[null,null,null,null,null,null,null,null,null,null,null,null,null,null,null,null,null,null,"Lawrenceburg-Lawrence County Airport","4110 Airport Dr, Lawrenceburg, TN 38464"]
[null,null,null,null,null,null,null,null,null,null,null,null,null,null,null,null,null,null,"Lebanon Municipal Airport","760 Franklin Rd, Lebanon, TN 37087"]
[null,null,null,null,null,null,null,null,null,null,null,null,null,null,null,null,null,null,"Livingston Municipal Airport","632 Airport Rd, Livingston, TN 38570"]
[null,null,null,null,null,null,null,null,null,null,null,null,null,null,null,null,null,null,"Marion County - Brown Field","300 Airport Rd, Jasper TN 37347"]
[null,null,null,null,null,null,null,null,null,null,null,null,null,null,null,null,null,null,"Mark Anton Airport","350 Walter Squire Rd, Dayton, TN 37321"]
[null,null,null,null,null,null,null,null,null,null,null,null,null,null,null,null,null,null,"Martin Campbell Field","971 Airport Rd, Copperhill, TN 37317"]
[null,null,null,null,null,null,null,null,null,null,null,null,null,null,null,null,null,null,"Maury County Regional Airport","1200 N Main St, Mount Pleasant, TN 38474"]
[null,null,null,null,null,null,null,null,null,null,null,null,null,null,null,null,null,null,"McGhee Tyson Airport","2055 Alcoa Hwy, Knoxville, TN 37701"]
[null,null,null,null,null,null,null,null,null,null,null,null,null,null,null,null,null,null,"McMinn County Airport","195 County Road 552, Athens, TN 37303"]
[null,null,null,null,null,null,null,null,null,null,null,null,null,null,null,null,null,null,"Memphis International Airport","2491 Winchester Rd, Memphis, TN 38116"]
[null,null,null,null,null,null,null,null,null,null,null,null,null,null,null,null,null,null,"Millington Regional Jetport","8182 Hornet Ave, Millington, TN 38053"]
[null,null,null,null,null,null,null,null,null,null,null,null,null,null,null,null,null,null,"Monroe County Airport","350 Airport Rd, Madisonville, TN 37354"]
[null,null,null,null,null,null,null,null,null,null,null,null,null,null,null,null,null,null,"Moore-Murrell Field","5233 Old Highway 11e, Morristown, TN 37814"]
[null,null,null,null,null,null,null,null,null,null,null,null,null,null,null,null,null,null,"Murfreesboro Municipal Airport","1932 Memorial Blvd, Murfreesboro, TN 37129"]
[null,null,null,null,null,null,null,null,null,null,null,null,null,null,null,null,null,null,"Music City Executive Airport","1475 Airport Rd, Gallatin, TN 37066"]
[null,null,null,null,null,null,null,null,null,null,null,null,null,null,null,null,null,null,"Nashville International Airport","1 Terminal Drive Suite 501, Nashville, TN 37214"]
[null,null,null,null,null,null,null,null,null,null,null,null,null,null,null,null,null,null,"New Tazewell Municipal","413 1st Ave, New Tazewell, TN 37825 "]
[null,null,null,null,null,null,null,null,null,null,null,null,null,null,null,null,null,null,"Oak Ridge Airport","P.O. Box 1, Oak Ridge, TN 37831"]
[null,null,null,null,null,null,null,null,null,null,null,null,null,null,null,null,null,null,"Perry County Airport","585 Airport Road, Linden, 37096"]
[null,null,null,null,null,null,null,null,null,null,null,null,null,null,null,null,null,null,"Portland Municipal Airport","601 Airport Rd, Portland, TN 37148"]
[null,null,null,null,null,null,null,null,null,null,null,null,null,null,null,null,null,null,"Puckett Gliderport","4689 US-41A, Eagleville, TN 37060"]
[null,null,null,null,null,null,null,null,null,null,null,null,null,null,null,null,null,null,"Robert Sibley Airport","2282 Airport Rd, Selmer, TN 38375"]
[null,null,null,null,null,null,null,null,null,null,null,null,null,null,null,null,null,null,"Rockwood Municipal Airport","258 Rockwood Airport Dr, Rockwood, TN 37854"]
[null,null,null,null,null,null,null,null,null,null,null,null,null,null,null,null,null,null,"Savannah-Hardin County Airport","100 Airport Ln, Savannah, TN 38372"]
[null,null,null,null,null,null,null,null,null,null,null,null,null,null,null,null,null,null,"Scott Municipal Airport","2263 Airport Rd, Oneida, TN 37841"]
[null,null,null,null,null,null,null,null,null,null,null,null,null,null,null,null,null,null,"Sgt. Lee Russell Carroll County Airport","535 Airport Ln, McKenzie TN 38201"]
[null,null,null,null,null,null,null,null,null,null,null,null,null,null,null,null,null,null,"Shelbyville Municipal Airport (Bomar Field)","2828 Highway 231 N, Shelbyville, TN 37160"]
[null,null,null,null,null,null,null,null,null,null,null,null,null,null,null,null,null,null,"Smithville Municipal Airport","338 Airport Ln, Smithville, TN 37166"]
[null,null,null,null,null,null,null,null,null,null,null,null,null,null,null,null,null,null,"Smyrna Airport","278 Doug Warpoole Rd, Smyrna, TN 37167"]
[null,null,null,null,null,null,null,null,null,null,null,null,null,null,null,null,null,null,"Springfield-Robertson County Airport","4432 Airport Rd, Springfield, TN 37172"]
[null,null,null,null,null,null,null,null,null,null,null,null,null,null,null,null,null,null,"State owned","2030 State Route 213, Tiptonville, TN 38079"]
[null,null,null,null,null,null,null,null,null,null,null,null,null,null,null,null,null,null,"Tri-Cities Regional Airport","2525 Highway 75, Ste 301, Blountville, TN 37617 "]
[null,null,null,null,null,null,null,null,null,null,null,null,null,null,null,null,null,null,"Tullahoma Regional Airport","807 William Northern Blvd., Tullahoma, TN 37388"]
[null,null,null,null,null,null,null,null,null,null,null,null,null,null,null,null,null,null,"University of the South-Franklin County Airport","262 Airport Road, Sewanee, TN 37375"]
[null,null,null,null,null,null,null,null,null,null,null,null,null,null,null,null,null,null,"Upper Cumberland Regional Airport","750 Airport Rd, Sparta, TN 38583"]
[null,null,null,null,null,null,null,null,null,null,null,null,null,null,null,null,null,null,"Warren County Memorial Airport","4187 Nashville Hwy, McMinnville, TN 37110"]
[null,null,null,null,null,null,null,null,null,null,null,null,null,null,null,null,null,null,"William B. Greene Regional Airport","415 Highway 91, Elizabethton, TN 37643"]
[null,null,null,null,null,null,null,null,null,null,null,null,null,null,null,null,null,null,"William L.Whitehurst Field","800 Airport Rd, Boivar, TN 38008"]
[null,null,null,null,null,null,null,null,null,null,null,null,null,null,null,null,null,null,"Winchester Municipal Airport","420 Aviation Dr, Winchester, TN 37398"]

{"sheet":"TDOT Final Balancing CO","index":1,"n_rows":167,"n_cols":20,"rows_kept":167,"cut":false,"hidden":false,"merged":[[17,1,17,3],[0,0,0,9],[0,11,7,14],[1,0,1,9],[2,0,2,1],[2,2,2,4],[2,6,2,7],[2,8,2,9],[4,0,4,1],[4,6,4,7],[6,0,6,1],[6,6,6,7],[4,8,5,9],[4,2,5,4],[6,2,7,4],[6,8,7,9],[8,11,8,14],[10,0,11,9],[12,1,12,3],[12,4,12,5],[13,1,13,3],[13,4,13,5],[11,11,16,14],[14,1,14,3],[14,4,14,5],[15,1,15,3],[15,4,15,5],[16,1,16,3],[16,4,16,5],[17,4,17,5],[32,0,32,2],[19,0,21,3],[19,4,19,8],[20,4,20,8],[21,4,21,8],[22,0,23,9],[24,1,24,3],[24,6,24,8],[26,2,26,3],[26,6,26,8],[27,2,27,3],[28,2,28,3],[30,0,30,9],[18,0,18,3],[18,4,18,8],[36,4,37,9],[43,1,43,3],[45,7,46,9],[50,2,50,3],[50,4,50,5],[50,6,50,7],[50,8,50,9],[71,0,72,9],[73,8,73,9],[61,0,61,3],[61,6,61,9],[66,0,66,3],[66,6,66,9],[68,0,68,3],[68,6,68,9],[59,0,59,3],[59,6,59,9],[51,0,51,9],[53,0,53,9],[54,0,54,9],[55,0,55,9],[56,0,56,9]]}
["CHANGE ORDER NUMBER ONE (1) - FINAL",null,null,null,null,null,null,null,null,null,null,"Final Change Order (Construction Project) -  \"A written order to the Contractor covering changes in the plans, specifications, or proposal quantities and establishing the basis of payment and contract time adjustment, if any, for work within the scope of the contract and necessary to complete the project.\"A final change order, in this case, becomes a part of the contract when signed by the contractor, owner, engineer, and TDOT."]
["PROJECT TITLE"]
["TAD PROJECT NO. :",null,"XX-555-XXXX-XX",null,null,null,"DATE PREPARED:",null,"(DATE)"]
[]
["AIRPORT:",null,"(CHOOSE FROM DROPDOWN OR TYPE IT)",null,null,null,"CONTRACTOR:",null,"(TYPE COMPANY NAME HERE)"]
[]
["ADDRESS:",null,{"$f":"IFERROR(VLOOKUP($C$5,S89:T167,2,FALSE),\"TYPE AIRPORT ADDRESS\")","v":"TYPE AIRPORT ADDRESS"},null,null,null,"ADDRESS:",null,"(TYPE ADDRESS NAME HERE)"]
[]
[null,null,null,null,null,null,null,null,null,null,null,"FAA AC 150-5370-10H"]
[]
["THE PURPOSE OF THIS CHANGE ORDER IS TO ESTABLISH UNIT PRICES FOR ITEMS OF WORK NOT COVERED BY THE ORIGINAL CONTRACT AND TO EXTEND CONTRACT TIME. YOU, THE LICENSED CONTRACTOR, ARE REQUESTED TO PERFORM THE FOLLOWING DESCRIBED WORK UPON RECEIPT OF AN APPROVED COPY OF THIS DOCUMENT OR AS DIRECTED BY THE ENGINEER:"]
[null,null,null,null,null,null,null,null,null,null,null,"CHANGE YOUR PRINT AREA FOR DOCUMENT THAT NEEDS TO BE MULTIPLE PAGES TO ENSURE TEXT RESOLUTION IS NOT COMPROMISED! PAGE LAYOUT/PRINT AREA/SET PRINT AREA."]
["ITEM NO.","ITEM DESCRIPTION",null,null,"UNIT",null,"UNIT PRICE","ORIGINAL QUANTITY","REVISED QUANTITY","CONTRACT ADJUSTMENT"]
[null,null,null,null,null,null,0,"X.XX","X.XX",{"$f":"(I14-H14)*G14","v":{"$error":"#VALUE!"}}]
[null,null,null,null,null,null,0,"X.XX","X.XX",{"$f":"(I15-H15)*G15","v":{"$error":"#VALUE!"}}]
[null,null,null,null,null,null,0,"X.XX","X.XX",{"$f":"(I16-H16)*G16","v":{"$error":"#VALUE!"}}]
[null,null,null,null,null,null,0,"X.XX","X.XX",{"$f":"(I17-H17)*G17","v":{"$error":"#VALUE!"}}]
[null,null,null,null,null,null,0,"X.XX","X.XX",{"$f":"(I18-H18)*G18","v":{"$error":"#VALUE!"}}]
["BRIEF DESCRIPTION, LOCATION, AND REASON FOR CHANGE ORDER:",null,null,null,"CHANGE ORDER # __ OR CONTRACT ADJUSTMENT TOTAL",null,null,null,null,{"$f":"SUM(J14:J18)","v":{"$error":"#VALUE!"}}]
[null,null,null,null,"PREVIOUS CHANGE ORDER(S) TOTAL",null,null,null,null,0]
[null,null,null,null,"ORIGINAL CONTRACT AWARDED",null,null,null,null,0]
[null,null,null,null,"REVISED CONTRACT THROUGH CHANGE ORDER # __",null,null,null,null,{"$f":"SUM(J19:J21)","v":{"$error":"#VALUE!"}}]
["SUBJECT TO THE CONDITIONS SET FORTH BELOW, AN EQUITABLE ADJUSTMENT IS ESTABLISHED AS FOLLOWS:"]
[]
[null,"CONTRACT  PRICE",null,null,null,null,"CONTRACT  TIME"]
[]
[]
[null,null,0,null,null,null,null,"X.XX","WORKING DAYS"]
[null,null,0,null,null,null,null,"X.XX","WORKING DAYS"]
[]
["CHANGES ARE SHOWN ON DRAWING(S), WHICH ARE ATTACHED (AS APPLICABLE)."]
[]
["ADDITIONAL JUSTIFICATION FOR CHANGE:"]
[]
["1. IS THE CHANGE ORDER SCOPE APPROPRIATE? (DOES THE CHANGE ORDER HELP COMPLETE THE ORIGINAL SCOPE OF THE PROJECT?)"]
[]
["2. JUSTIFICATIONS FOR UNIT PRICES OR TOTAL COST:"]
[]
["3. DOES THE SPONSOR HAVE THE LOCAL SHARE FOR THIS CONTRACT CHANGE?"]
[]
["4. HAS CONSENT OF SURETY BEEN OBTAINED?",null,null,null,null,null,""]
[]
["5. WILL THIS AFFECT THE INSURANCE COVERAGE?"]
["5a.","IF YES, WILL THE POLICIES BE EXTENDED?"]
[]
["6. IS THE DBE GOAL STILL ACHIEVEABLE WITH THIS CHANGE ORDER?",null,null,null,null,null,"IF NO, EXPLAIN:"]
[]
["7. BUY AMERICAN ANALYSIS"]
[]
["8. HAS THIS CHANGE ORDER BEEN DISCUSSED WITH THE TDOT PROJECT MANAGER?"]
[null,null,"IF SO, WHEN?",null,null,null,"IF SO, WITH WHOM?"]
["THE FOREGOING IS IN ACCORDANCE WITH YOUR PROPOSAL DATED AND LISTED BELOW:"]
[]
["A.  THE AFOREMENTIONED CHANGE AND WORK AFFECTED THEREBY SHALL BECOME AN AMENDMENT TO THE CONTRACT AND ARE SUBJECT TO ALL  "]
["      CONTRACT STIPULATIONS AND CONVENANTS;"]
["B.  THE RIGHTS OF THE OWNER (SPONSOR) ARE NOT PREJUDICED;"]
["C.  ALL CLAIMS AGAINST THE OWNER WHICH ARE INCIDENTAL TO OR AS A CONSEQUENCE OF THE AFOREMENTIONED CHANGE ARE SATISFIED."]
["CONTRACTOR",null,null,null,null,null,"OWNER (AIRPORT SPONSOR)"]
[null,null,null,null,null,null,""]
[]
[]
[]
["DATE",null,null,null,null,null,"DATE"]
[]
["RECOMMENDED FOR APPROVAL BY:",null,null,null,null,null,"APPROVAL DETERMINATION:"]
[]
[]
["(AIRPORT SPONSOR'S ENGINEER/CONSULTANT)",null,null,null,null,null,"TENNESSEE DEPARTMENT OF TRANSPORTATION AERONAUTICS DIVISION"]
[]
["DATE",null,null,null,null,null,"DATE"]
[]
["NOTE: THIS DOCUMENT REQUIRES TDOT AERONAUTICS APPROVAL PRIOR TO CONSTRUCTION, OTHERWISE STATE AND/OR FEDERAL PARTICIPATION FOR ADDITIONAL WORK MAY BE JEOPARDIZED.  PROCEEDING WITH A CONTRACT CHANGE PRIOR TO TDOT AERONAUTICS APPROVAL IS AT THE SPONSOR'S RISK."]
[]
[null,null,null,null,null,null,null,null,"FORM UPDATED 01/06/2025"]
["DT-1945 (Rev. 01/2025)",null,null,null,null,null,null,null,null,"RDA 11083"]
[]
[]
[]
[]
[]
[]
[]
[]
[]
[]
[]
[]
[null,null,null,null,null,null,null,null,null,null,null,null,null,null,null,null,null,null,"(CHOOSE FROM DROPDOWN OR TYPE IT)"]
[null,null,null,null,null,null,null,null,null,null,null,null,null,null,null,null,null,null,"Abernathy Field","1736 Bethel Rd, Pulaski, TN 38478"]
[null,null,null,null,null,null,null,null,null,null,null,null,null,null,null,null,null,null,"Arnold Field","155 Co-Op Drive, Halls TN 38040"]
[null,null,null,null,null,null,null,null,null,null,null,null,null,null,null,null,null,null,"Beech River Regional","1600 Mount Ararat Rd, Darden, TN 38328"]
[null,null,null,null,null,null,null,null,null,null,null,null,null,null,null,null,null,null,"Benton County Airport","275 Airport Dr, Camden, TN 38320"]
[null,null,null,null,null,null,null,null,null,null,null,null,null,null,null,null,null,null,"Centerville Municipal Airport","2650 Airport Rd, Centerville, TN 37033"]
[null,null,null,null,null,null,null,null,null,null,null,null,null,null,null,null,null,null,"Charles W. Baker Field","3870 Fite Rd, Millington, TN 38053"]
[null,null,null,null,null,null,null,null,null,null,null,null,null,null,null,null,null,null,"Chattanooga Metropolitan Airport (Lovell Field)","1001 Airport Rd, Chattanooga, Tn 37421"]
[null,null,null,null,null,null,null,null,null,null,null,null,null,null,null,null,null,null,"Chilhowee Gliderport","8261 Highway 411, Benton, TN 37307 "]
[null,null,null,null,null,null,null,null,null,null,null,null,null,null,null,null,null,null,"Clarksville Regional Airport","200 Outlaw Field Road, Clarksville, TN 37042"]
[null,null,null,null,null,null,null,null,null,null,null,null,null,null,null,null,null,null,"Cleveland Regional Jetport","251 Dry Valley Rd NE, Cleveland, TN 37312"]
[null,null,null,null,null,null,null,null,null,null,null,null,null,null,null,null,null,null,"Clifton Airport (Hassell Field)","Airport Rd, Clifton, TN 38425"]
[null,null,null,null,null,null,null,null,null,null,null,null,null,null,null,null,null,null,"Collegedale Municipal Airport","5100 Bess Moore Rd, Apison, TN 37302"]
[null,null,null,null,null,null,null,null,null,null,null,null,null,null,null,null,null,null,"Colonel Tommy C Stiner Airfield","2707 Jacksboro Pike, Jacksboro, TN 37757"]
[null,null,null,null,null,null,null,null,null,null,null,null,null,null,null,null,null,null,"Covington Municipal Airport","169 Airport Parkway Drive. Covington, TN 38019"]
[null,null,null,null,null,null,null,null,null,null,null,null,null,null,null,null,null,null,"Crossville Memorial Airport (Whitson Field)","2409 Sparta Hwy, Crossville, TN 38572"]
[null,null,null,null,null,null,null,null,null,null,null,null,null,null,null,null,null,null,"Dallas Bay Skypark","1824 E Crabtree Rd, Hixson TN 37343"]
[null,null,null,null,null,null,null,null,null,null,null,null,null,null,null,null,null,null,"Dickson Municipal Airport","2372 Sylvia Rd, Dickson, TN 37055"]
[null,null,null,null,null,null,null,null,null,null,null,null,null,null,null,null,null,null,"Downtown Island Airport","2701 Spence Pl, Knoxville, TN 37920"]
[null,null,null,null,null,null,null,null,null,null,null,null,null,null,null,null,null,null,"Dyersburg Municipal Airport","315 Airport Rd, Dyersburg, TN 38024"]
[null,null,null,null,null,null,null,null,null,null,null,null,null,null,null,null,null,null,"Ellington Airport","1877 Franklin Pike, Lewisburg, TN 37091"]
[null,null,null,null,null,null,null,null,null,null,null,null,null,null,null,null,null,null,"Everett-Stewart Airport","1489 Airport Circle Rd Ste 1, Union City, TN 38261"]
[null,null,null,null,null,null,null,null,null,null,null,null,null,null,null,null,null,null,"Fayette County Airport","1075 Airport Rd, Somerville, TN 38068"]
[null,null,null,null,null,null,null,null,null,null,null,null,null,null,null,null,null,null,"Fayetteville Municipal Airport","37 Airport Rd, Fayetteville, TN 37334"]
[null,null,null,null,null,null,null,null,null,null,null,null,null,null,null,null,null,null,"Gatlinburg-Pigeon Forge Airport","134 Air Museum Way, Sevierville, TN 37862"]
[null,null,null,null,null,null,null,null,null,null,null,null,null,null,null,null,null,null,"General Dewitt Spain Airport","2787 N 2nd St, Memphis, TN 38127"]
[null,null,null,null,null,null,null,null,null,null,null,null,null,null,null,null,null,null,"Gibson County Airport","56 Airport Rd, Milan, TN 38358"]
[null,null,null,null,null,null,null,null,null,null,null,null,null,null,null,null,null,null,"Greeneville Municipal Airport","246 Airport Rd, Greeneville, TN 37745"]
[null,null,null,null,null,null,null,null,null,null,null,null,null,null,null,null,null,null,"Hawkins County Airport","675 Main St, Surgoinsville, TN 37873"]
[null,null,null,null,null,null,null,null,null,null,null,null,null,null,null,null,null,null,"Henry County Airport","1949 Diggs Rd, Paris, TN 38242"]
[null,null,null,null,null,null,null,null,null,null,null,null,null,null,null,null,null,null,"Houston County Airport","P.O. Box 366, Erin, TN 37042"]
[null,null,null,null,null,null,null,null,null,null,null,null,null,null,null,null,null,null,"Humboldt Municipal Airport","4655 E Main St, Humboldt, Tn 38343"]
[null,null,null,null,null,null,null,null,null,null,null,null,null,null,null,null,null,null,"Humphreys County Airport","1005 Airport Rd, Waverly, TN 37185"]
[null,null,null,null,null,null,null,null,null,null,null,null,null,null,null,null,null,null,"Jackson County Airport","860 Big Bottom Rd, Gainesboro, TN 38562"]
[null,null,null,null,null,null,null,null,null,null,null,null,null,null,null,null,null,null,"Jackson Regional Airport","308 Grady Montgomery Dr, Jackson, TN 38301"]
[null,null,null,null,null,null,null,null,null,null,null,null,null,null,null,null,null,null,"Jamestown Municipal Airport","125 Airport Rd, Jamestown, TN 38556"]
[null,null,null,null,null,null,null,null,null,null,null,null,null,null,null,null,null,null,"John A. Baker Field (Paul Bridges Field)","1192 W Main St., Hohenwald, TN 38462"]
[null,null,null,null,null,null,null,null,null,null,null,null,null,null,null,null,null,null,"John C. Tune Airport","110 Tune Airport Dr, Nashville, TN 37209"]
[null,null,null,null,null,null,null,null,null,null,null,null,null,null,null,null,null,null,"Johnson City Stolport","3191 Watauga Rd, Johnson City, TN 37601"]
[null,null,null,null,null,null,null,null,null,null,null,null,null,null,null,null,null,null,"Johnson County Airport","611 Airport Rd, Mountain City, TN 37683"]
[null,null,null,null,null,null,null,null,null,null,null,null,null,null,null,null,null,null,"Lafayette Municipal Airport","1000 Airport Rd, Lafayette, TN 37083"]
[null,null,null,null,null,null,null,null,null,null,null,null,null,null,null,null,null,null,"Lawrenceburg-Lawrence County Airport","4110 Airport Dr, Lawrenceburg, TN 38464"]
[null,null,null,null,null,null,null,null,null,null,null,null,null,null,null,null,null,null,"Lebanon Municipal Airport","760 Franklin Rd, Lebanon, TN 37087"]
[null,null,null,null,null,null,null,null,null,null,null,null,null,null,null,null,null,null,"Livingston Municipal Airport","632 Airport Rd, Livingston, TN 38570"]
[null,null,null,null,null,null,null,null,null,null,null,null,null,null,null,null,null,null,"Marion County - Brown Field","300 Airport Rd, Jasper TN 37347"]
[null,null,null,null,null,null,null,null,null,null,null,null,null,null,null,null,null,null,"Mark Anton Airport","350 Walter Squire Rd, Dayton, TN 37321"]
[null,null,null,null,null,null,null,null,null,null,null,null,null,null,null,null,null,null,"Martin Campbell Field","971 Airport Rd, Copperhill, TN 37317"]
[null,null,null,null,null,null,null,null,null,null,null,null,null,null,null,null,null,null,"Maury County Regional Airport","1200 N Main St, Mount Pleasant, TN 38474"]
[null,null,null,null,null,null,null,null,null,null,null,null,null,null,null,null,null,null,"McGhee Tyson Airport","2055 Alcoa Hwy, Knoxville, TN 37701"]
[null,null,null,null,null,null,null,null,null,null,null,null,null,null,null,null,null,null,"McMinn County Airport","195 County Road 552, Athens, TN 37303"]
[null,null,null,null,null,null,null,null,null,null,null,null,null,null,null,null,null,null,"Memphis International Airport","2491 Winchester Rd, Memphis, TN 38116"]
[null,null,null,null,null,null,null,null,null,null,null,null,null,null,null,null,null,null,"Millington Regional Jetport","8182 Hornet Ave, Millington, TN 38053"]
[null,null,null,null,null,null,null,null,null,null,null,null,null,null,null,null,null,null,"Monroe County Airport","350 Airport Rd, Madisonville, TN 37354"]
[null,null,null,null,null,null,null,null,null,null,null,null,null,null,null,null,null,null,"Moore-Murrell Field","5233 Old Highway 11e, Morristown, TN 37814"]
[null,null,null,null,null,null,null,null,null,null,null,null,null,null,null,null,null,null,"Murfreesboro Municipal Airport","1932 Memorial Blvd, Murfreesboro, TN 37129"]
[null,null,null,null,null,null,null,null,null,null,null,null,null,null,null,null,null,null,"Music City Executive Airport","1475 Airport Rd, Gallatin, TN 37066"]
[null,null,null,null,null,null,null,null,null,null,null,null,null,null,null,null,null,null,"Nashville International Airport","1 Terminal Drive Suite 501, Nashville, TN 37214"]
[null,null,null,null,null,null,null,null,null,null,null,null,null,null,null,null,null,null,"New Tazewell Municipal","413 1st Ave, New Tazewell, TN 37825 "]
[null,null,null,null,null,null,null,null,null,null,null,null,null,null,null,null,null,null,"Oak Ridge Airport","P.O. Box 1, Oak Ridge, TN 37831"]
[null,null,null,null,null,null,null,null,null,null,null,null,null,null,null,null,null,null,"Perry County Airport","585 Airport Road, Linden, 37096"]
[null,null,null,null,null,null,null,null,null,null,null,null,null,null,null,null,null,null,"Portland Municipal Airport","601 Airport Rd, Portland, TN 37148"]
[null,null,null,null,null,null,null,null,null,null,null,null,null,null,null,null,null,null,"Puckett Gliderport","4689 US-41A, Eagleville, TN 37060"]
[null,null,null,null,null,null,null,null,null,null,null,null,null,null,null,null,null,null,"Robert Sibley Airport","2282 Airport Rd, Selmer, TN 38375"]
[null,null,null,null,null,null,null,null,null,null,null,null,null,null,null,null,null,null,"Rockwood Municipal Airport","258 Rockwood Airport Dr, Rockwood, TN 37854"]
[null,null,null,null,null,null,null,null,null,null,null,null,null,null,null,null,null,null,"Savannah-Hardin County Airport","100 Airport Ln, Savannah, TN 38372"]
[null,null,null,null,null,null,null,null,null,null,null,null,null,null,null,null,null,null,"Scott Municipal Airport","2263 Airport Rd, Oneida, TN 37841"]
[null,null,null,null,null,null,null,null,null,null,null,null,null,null,null,null,null,null,"Sgt. Lee Russell Carroll County Airport","535 Airport Ln, McKenzie TN 38201"]
[null,null,null,null,null,null,null,null,null,null,null,null,null,null,null,null,null,null,"Shelbyville Municipal Airport (Bomar Field)","2828 Highway 231 N, Shelbyville, TN 37160"]
[null,null,null,null,null,null,null,null,null,null,null,null,null,null,null,null,null,null,"Smithville Municipal Airport","338 Airport Ln, Smithville, TN 37166"]
[null,null,null,null,null,null,null,null,null,null,null,null,null,null,null,null,null,null,"Smyrna Airport","278 Doug Warpoole Rd, Smyrna, TN 37167"]
[null,null,null,null,null,null,null,null,null,null,null,null,null,null,null,null,null,null,"Springfield-Robertson County Airport","4432 Airport Rd, Springfield, TN 37172"]
[null,null,null,null,null,null,null,null,null,null,null,null,null,null,null,null,null,null,"State owned","2030 State Route 213, Tiptonville, TN 38079"]
[null,null,null,null,null,null,null,null,null,null,null,null,null,null,null,null,null,null,"Tri-Cities Regional Airport","2525 Highway 75, Ste 301, Blountville, TN 37617 "]
[null,null,null,null,null,null,null,null,null,null,null,null,null,null,null,null,null,null,"Tullahoma Regional Airport","807 William Northern Blvd., Tullahoma, TN 37388"]
[null,null,null,null,null,null,null,null,null,null,null,null,null,null,null,null,null,null,"University of the South-Franklin County Airport","262 Airport Road, Sewanee, TN 37375"]
[null,null,null,null,null,null,null,null,null,null,null,null,null,null,null,null,null,null,"Upper Cumberland Regional Airport","750 Airport Rd, Sparta, TN 38583"]
[null,null,null,null,null,null,null,null,null,null,null,null,null,null,null,null,null,null,"Warren County Memorial Airport","4187 Nashville Hwy, McMinnville, TN 37110"]
[null,null,null,null,null,null,null,null,null,null,null,null,null,null,null,null,null,null,"William B. Greene Regional Airport","415 Highway 91, Elizabethton, TN 37643"]
[null,null,null,null,null,null,null,null,null,null,null,null,null,null,null,null,null,null,"William L.Whitehurst Field","800 Airport Rd, Boivar, TN 38008"]
[null,null,null,null,null,null,null,null,null,null,null,null,null,null,null,null,null,null,"Winchester Municipal Airport","420 Aviation Dr, Winchester, TN 37398"]

{"sheet":"TDOT Supplemental Agreement","index":2,"n_rows":167,"n_cols":20,"rows_kept":167,"cut":false,"hidden":false,"merged":[[0,0,0,9],[0,11,12,14],[1,0,1,9],[2,0,2,1],[2,2,2,4],[2,6,2,7],[2,8,2,9],[4,0,4,1],[4,6,4,7],[6,0,6,1],[6,6,6,7],[6,2,7,4],[6,8,7,9],[4,8,5,9],[10,0,11,9],[12,1,12,3],[12,4,12,5],[12,7,12,8],[13,1,13,3],[13,4,13,5],[13,7,13,8],[13,11,13,14],[14,1,14,3],[14,4,14,5],[14,7,14,8],[15,1,15,3],[15,4,15,5],[15,7,15,8],[16,1,16,3],[16,4,16,5],[16,7,16,8],[17,1,17,3],[17,4,17,5],[17,7,17,8],[27,2,27,3],[18,0,18,3],[18,4,18,8],[19,0,21,3],[19,4,19,8],[20,4,20,8],[21,4,21,8],[22,0,23,9],[24,1,24,3],[24,6,24,8],[26,2,26,3],[26,6,26,8],[57,6,57,9],[28,2,28,3],[30,0,30,9],[32,0,32,4],[39,1,39,3],[41,7,42,9],[48,2,48,3],[48,4,48,5],[48,6,48,7],[48,8,48,9],[4,2,5,4],[16,11,19,14],[69,0,70,9],[71,8,71,9],[59,0,59,3],[59,6,59,9],[64,0,64,3],[64,6,64,9],[66,0,66,3],[66,6,66,9],[49,0,49,9],[51,0,51,9],[52,0,52,9],[53,0,53,9],[54,0,54,9],[57,0,57,3]]}
["SUPPLEMENTAL AGREEMENT ONE (1)",null,null,null,null,null,null,null,null,null,null,"Supplemental Agreement (SA): \"A written agreement between the Contractor and the\nOwner that establishes the basis of payment and contract time adjustment, if any, for the work affected by the supplemental agreement. A supplemental agreement is required if: (1) in scope work would increase or decrease the total amount of the awarded contract by more than 25%: (2) in scope work would increase or decrease the total of any major contract item by more than 25%; (3) work that is not within the scope of the originally awarded contract; or (4) adding or deleting of a major contract item.\" A Supplemental Agreement, in this case, becomes a part of the contract when signed by the contractor, owner, engineer, and TDOT."]
["PROJECT TITLE"]
["TAD PROJECT NO. :",null,"XX-555-XXXX-XX",null,null,null,"DATE PREPARED:",null,"(DATE)"]
[]
["AIRPORT:",null,"(CHOOSE FROM DROPDOWN OR TYPE IT)",null,null,null,"CONTRACTOR:",null,"(TYPE COMPANY NAME HERE)"]
[]
["ADDRESS:",null,{"$f":"IFERROR(VLOOKUP($C$5,S89:T167,2,FALSE),\"TYPE AIRPORT ADDRESS\")","v":"TYPE AIRPORT ADDRESS"},null,null,null,"ADDRESS:",null,"(TYPE ADDRESS NAME HERE)"]
[]
[]
[]
["THE PURPOSE OF THIS SUPPLEMENTAL AGREEMENT IS TO ESTABLISH UNIT PRICES FOR ITEMS OF WORK NOT COVERED BY THE ORIGINAL CONTRACT, ADDITIONAL SCOPE OF WORK, AND TO EXTEND CONTRACT TIME. YOU, THE LICENSED CONTRACTOR, ARE REQUESTED TO PERFORM THE FOLLOWING DESCRIBED WORK UPON RECEIPT OF AN APPROVED COPY OF THIS DOCUMENT OR AS DIRECTED BY THE ENGINEER:"]
[]
["ITEM NO.","ITEM DESCRIPTION",null,null,"UNIT",null,"UNIT PRICE","QUANTITY",null,"AMOUNT "]
[null,null,null,null,null,null,0,"X.XX",null,{"$f":"G14*H14","v":{"$error":"#VALUE!"}},null,"FAA AC 150-5370-10H"]
[null,null,null,null,null,null,0,"X.XX",null,{"$f":"G15*H15","v":{"$error":"#VALUE!"}}]
[null,null,null,null,null,null,0,"X.XX",null,{"$f":"G16*H16","v":{"$error":"#VALUE!"}}]
[null,null,null,null,null,null,0,"X.XX",null,{"$f":"G17*H17","v":{"$error":"#VALUE!"}},null,"CHANGE YOUR PRINT AREA FOR DOCUMENT THAT NEEDS TO BE MULTIPLE PAGES TO ENSURE TEXT RESOLUTION IS NOT COMPROMISED! PAGE LAYOUT/PRINT AREA/SET PRINT AREA."]
[null,null,null,null,null,null,0,"X.XX",null,{"$f":"G18*H18","v":{"$error":"#VALUE!"}}]
["BRIEF DESCRIPTION, LOCATION, AND REASON FOR SUPPLEMENTAL AGREEMENT:",null,null,null,"SUPPLEMENTAL AGREEMENT # __ TOTAL",null,null,null,null,{"$f":"SUM(J14:J18)","v":{"$error":"#VALUE!"}}]
[null,null,null,null,"PREVIOUS SUPPLEMENTAL AGREEMENT(S) TOTAL",null,null,null,null,0]
[null,null,null,null,"ORIGINAL CONTRACT AWARDED",null,null,null,null,0]
[null,null,null,null,"REVISED CONTRACT THROUGH SUPPLEMENTAL AGREEMENT # __",null,null,null,null,{"$f":"SUM(J19:J21)","v":{"$error":"#VALUE!"}}]
["SUBJECT TO THE CONDITIONS SET FORTH BELOW, AN EQUITABLE ADJUSTMENT IS ESTABLISHED AS FOLLOWS:"]
[]
[null,"CONTRACT  PRICE",null,null,null,null,"CONTRACT  TIME"]
[]
[]
[null,null,0,null,null,null,null,"X.XX","WORKING DAYS"]
[null,null,0,null,null,null,null,"X.XX","WORKING DAYS"]
[]
["CHANGES ARE SHOWN ON DRAWING(S), WHICH ARE ATTACHED (AS APPLICABLE)."]
[]
["ADDITIONAL JUSTIFICATION FOR SUPPLEMENTAL AGREEMENT:"]
[]
["1. DOES THE SPONSOR HAVE THE LOCAL SHARE FOR THIS CONTRACT CHANGE?"]
[]
["2. HAS CONSENT OF SURETY BEEN OBTAINED?",null,null,null,null,null,""]
[]
["3. WILL THIS AFFECT THE INSURANCE COVERAGE?"]
["3a.","IF YES, WILL THE POLICIES BE EXTENDED?"]
[]
["4. IS THE DBE GOAL STILL ACHIEVEABLE WITH THIS SUPPLEMENTAL AGREEMENT?    IF NO, EXPLAIN:"]
[]
["5. BUY AMERICAN ANALYSIS"]
[]
["6. WILL THE ENVIRONMENTAL IMPACT OF THE PROJECT CHANGE WITH THIS SUPPLEMENTAL AGREEMENT? "]
[null,null,"         *PLEASE CONSULT WITH TDOT AERONAUTICS PLANNING AND ENVIRONMENTAL "]
["7. HAS THIS SUPPLEMENTAL AGREEMENT BEEN DISCUSSED WITH THE TDOT PROJECT MANAGER?"]
[null,null,"IF SO, WHEN?",null,null,null,"IF SO, WITH WHOM?"]
["THE FOREGOING IS IN ACCORDANCE WITH YOUR PROPOSAL DATED AND LISTED BELOW:"]
[]
["A.  THE AFOREMENTIONED CHANGE AND WORK AFFECTED THEREBY SHALL BECOME AN AMENDMENT TO THE CONTRACT AND ARE SUBJECT TO ALL  "]
["      CONTRACT STIPULATIONS AND CONVENANTS;"]
["B.  THE RIGHTS OF THE OWNER (SPONSOR) ARE NOT PREJUDICED;"]
["C.  ALL CLAIMS AGAINST THE OWNER WHICH ARE INCIDENTAL TO OR AS A CONSEQUENCE OF THE AFOREMENTIONED CHANGE ARE SATISFIED."]
["CONTRACTOR",null,null,null,null,null,"OWNER (AIRPORT SPONSOR)"]
[null,null,null,null,null,null,""]
[]
[]
[]
["DATE",null,null,null,null,null,"DATE"]
[]
["RECOMMENDED FOR APPROVAL BY:",null,null,null,null,null,"APPROVAL DETERMINATION:"]
[]
[]
["(AIRPORT SPONSOR'S ENGINEER/CONSULTANT)",null,null,null,null,null,"TENNESSEE DEPARTMENT OF TRANSPORTATION AERONAUTICS DIVISION"]
[]
["DATE",null,null,null,null,null,"DATE"]
[]
["NOTE: THIS DOCUMENT REQUIRES TDOT AERONAUTICS APPROVAL PRIOR TO CONSTRUCTION, OTHERWISE STATE AND/OR FEDERAL PARTICIPATION FOR ADDITIONAL WORK MAY BE JEOPARDIZED.  PROCEEDING WITH A CONTRACT CHANGE PRIOR TO TDOT AERONAUTICS APPROVAL IS AT THE SPONSOR'S RISK."]
[]
[null,null,null,null,null,null,null,null,"FORM UPDATED 01/06/2025"]
["DT-1945 (Rev. 01/2025)",null,null,null,null,null,null,null,null,"RDA 11083"]
[]
[]
[]
[]
[]
[]
[]
[]
[]
[]
[]
[]
[]
[]
[null,null,null,null,null,null,null,null,null,null,null,null,null,null,null,null,null,null,"(CHOOSE FROM DROPDOWN OR TYPE IT)"]
[null,null,null,null,null,null,null,null,null,null,null,null,null,null,null,null,null,null,"Abernathy Field","1736 Bethel Rd, Pulaski, TN 38478"]
[null,null,null,null,null,null,null,null,null,null,null,null,null,null,null,null,null,null,"Arnold Field","155 Co-Op Drive, Halls TN 38040"]
[null,null,null,null,null,null,null,null,null,null,null,null,null,null,null,null,null,null,"Beech River Regional","1600 Mount Ararat Rd, Darden, TN 38328"]
[null,null,null,null,null,null,null,null,null,null,null,null,null,null,null,null,null,null,"Benton County Airport","275 Airport Dr, Camden, TN 38320"]
[null,null,null,null,null,null,null,null,null,null,null,null,null,null,null,null,null,null,"Centerville Municipal Airport","2650 Airport Rd, Centerville, TN 37033"]
[null,null,null,null,null,null,null,null,null,null,null,null,null,null,null,null,null,null,"Charles W. Baker Field","3870 Fite Rd, Millington, TN 38053"]
[null,null,null,null,null,null,null,null,null,null,null,null,null,null,null,null,null,null,"Chattanooga Metropolitan Airport (Lovell Field)","1001 Airport Rd, Chattanooga, Tn 37421"]
[null,null,null,null,null,null,null,null,null,null,null,null,null,null,null,null,null,null,"Chilhowee Gliderport","8261 Highway 411, Benton, TN 37307 "]
[null,null,null,null,null,null,null,null,null,null,null,null,null,null,null,null,null,null,"Clarksville Regional Airport","200 Outlaw Field Road, Clarksville, TN 37042"]
[null,null,null,null,null,null,null,null,null,null,null,null,null,null,null,null,null,null,"Cleveland Regional Jetport","251 Dry Valley Rd NE, Cleveland, TN 37312"]
[null,null,null,null,null,null,null,null,null,null,null,null,null,null,null,null,null,null,"Clifton Airport (Hassell Field)","Airport Rd, Clifton, TN 38425"]
[null,null,null,null,null,null,null,null,null,null,null,null,null,null,null,null,null,null,"Collegedale Municipal Airport","5100 Bess Moore Rd, Apison, TN 37302"]
[null,null,null,null,null,null,null,null,null,null,null,null,null,null,null,null,null,null,"Colonel Tommy C Stiner Airfield","2707 Jacksboro Pike, Jacksboro, TN 37757"]
[null,null,null,null,null,null,null,null,null,null,null,null,null,null,null,null,null,null,"Covington Municipal Airport","169 Airport Parkway Drive. Covington, TN 38019"]
[null,null,null,null,null,null,null,null,null,null,null,null,null,null,null,null,null,null,"Crossville Memorial Airport (Whitson Field)","2409 Sparta Hwy, Crossville, TN 38572"]
[null,null,null,null,null,null,null,null,null,null,null,null,null,null,null,null,null,null,"Dallas Bay Skypark","1824 E Crabtree Rd, Hixson TN 37343"]
[null,null,null,null,null,null,null,null,null,null,null,null,null,null,null,null,null,null,"Dickson Municipal Airport","2372 Sylvia Rd, Dickson, TN 37055"]
[null,null,null,null,null,null,null,null,null,null,null,null,null,null,null,null,null,null,"Downtown Island Airport","2701 Spence Pl, Knoxville, TN 37920"]
[null,null,null,null,null,null,null,null,null,null,null,null,null,null,null,null,null,null,"Dyersburg Municipal Airport","315 Airport Rd, Dyersburg, TN 38024"]
[null,null,null,null,null,null,null,null,null,null,null,null,null,null,null,null,null,null,"Ellington Airport","1877 Franklin Pike, Lewisburg, TN 37091"]
[null,null,null,null,null,null,null,null,null,null,null,null,null,null,null,null,null,null,"Everett-Stewart Airport","1489 Airport Circle Rd Ste 1, Union City, TN 38261"]
[null,null,null,null,null,null,null,null,null,null,null,null,null,null,null,null,null,null,"Fayette County Airport","1075 Airport Rd, Somerville, TN 38068"]
[null,null,null,null,null,null,null,null,null,null,null,null,null,null,null,null,null,null,"Fayetteville Municipal Airport","37 Airport Rd, Fayetteville, TN 37334"]
[null,null,null,null,null,null,null,null,null,null,null,null,null,null,null,null,null,null,"Gatlinburg-Pigeon Forge Airport","134 Air Museum Way, Sevierville, TN 37862"]
[null,null,null,null,null,null,null,null,null,null,null,null,null,null,null,null,null,null,"General Dewitt Spain Airport","2787 N 2nd St, Memphis, TN 38127"]
[null,null,null,null,null,null,null,null,null,null,null,null,null,null,null,null,null,null,"Gibson County Airport","56 Airport Rd, Milan, TN 38358"]
[null,null,null,null,null,null,null,null,null,null,null,null,null,null,null,null,null,null,"Greeneville Municipal Airport","246 Airport Rd, Greeneville, TN 37745"]
[null,null,null,null,null,null,null,null,null,null,null,null,null,null,null,null,null,null,"Hawkins County Airport","675 Main St, Surgoinsville, TN 37873"]
[null,null,null,null,null,null,null,null,null,null,null,null,null,null,null,null,null,null,"Henry County Airport","1949 Diggs Rd, Paris, TN 38242"]
[null,null,null,null,null,null,null,null,null,null,null,null,null,null,null,null,null,null,"Houston County Airport","P.O. Box 366, Erin, TN 37042"]
[null,null,null,null,null,null,null,null,null,null,null,null,null,null,null,null,null,null,"Humboldt Municipal Airport","4655 E Main St, Humboldt, Tn 38343"]
[null,null,null,null,null,null,null,null,null,null,null,null,null,null,null,null,null,null,"Humphreys County Airport","1005 Airport Rd, Waverly, TN 37185"]
[null,null,null,null,null,null,null,null,null,null,null,null,null,null,null,null,null,null,"Jackson County Airport","860 Big Bottom Rd, Gainesboro, TN 38562"]
[null,null,null,null,null,null,null,null,null,null,null,null,null,null,null,null,null,null,"Jackson Regional Airport","308 Grady Montgomery Dr, Jackson, TN 38301"]
[null,null,null,null,null,null,null,null,null,null,null,null,null,null,null,null,null,null,"Jamestown Municipal Airport","125 Airport Rd, Jamestown, TN 38556"]
[null,null,null,null,null,null,null,null,null,null,null,null,null,null,null,null,null,null,"John A. Baker Field (Paul Bridges Field)","1192 W Main St., Hohenwald, TN 38462"]
[null,null,null,null,null,null,null,null,null,null,null,null,null,null,null,null,null,null,"John C. Tune Airport","110 Tune Airport Dr, Nashville, TN 37209"]
[null,null,null,null,null,null,null,null,null,null,null,null,null,null,null,null,null,null,"Johnson City Stolport","3191 Watauga Rd, Johnson City, TN 37601"]
[null,null,null,null,null,null,null,null,null,null,null,null,null,null,null,null,null,null,"Johnson County Airport","611 Airport Rd, Mountain City, TN 37683"]
[null,null,null,null,null,null,null,null,null,null,null,null,null,null,null,null,null,null,"Lafayette Municipal Airport","1000 Airport Rd, Lafayette, TN 37083"]
[null,null,null,null,null,null,null,null,null,null,null,null,null,null,null,null,null,null,"Lawrenceburg-Lawrence County Airport","4110 Airport Dr, Lawrenceburg, TN 38464"]
[null,null,null,null,null,null,null,null,null,null,null,null,null,null,null,null,null,null,"Lebanon Municipal Airport","760 Franklin Rd, Lebanon, TN 37087"]
[null,null,null,null,null,null,null,null,null,null,null,null,null,null,null,null,null,null,"Livingston Municipal Airport","632 Airport Rd, Livingston, TN 38570"]
[null,null,null,null,null,null,null,null,null,null,null,null,null,null,null,null,null,null,"Marion County - Brown Field","300 Airport Rd, Jasper TN 37347"]
[null,null,null,null,null,null,null,null,null,null,null,null,null,null,null,null,null,null,"Mark Anton Airport","350 Walter Squire Rd, Dayton, TN 37321"]
[null,null,null,null,null,null,null,null,null,null,null,null,null,null,null,null,null,null,"Martin Campbell Field","971 Airport Rd, Copperhill, TN 37317"]
[null,null,null,null,null,null,null,null,null,null,null,null,null,null,null,null,null,null,"Maury County Regional Airport","1200 N Main St, Mount Pleasant, TN 38474"]
[null,null,null,null,null,null,null,null,null,null,null,null,null,null,null,null,null,null,"McGhee Tyson Airport","2055 Alcoa Hwy, Knoxville, TN 37701"]
[null,null,null,null,null,null,null,null,null,null,null,null,null,null,null,null,null,null,"McMinn County Airport","195 County Road 552, Athens, TN 37303"]
[null,null,null,null,null,null,null,null,null,null,null,null,null,null,null,null,null,null,"Memphis International Airport","2491 Winchester Rd, Memphis, TN 38116"]
[null,null,null,null,null,null,null,null,null,null,null,null,null,null,null,null,null,null,"Millington Regional Jetport","8182 Hornet Ave, Millington, TN 38053"]
[null,null,null,null,null,null,null,null,null,null,null,null,null,null,null,null,null,null,"Monroe County Airport","350 Airport Rd, Madisonville, TN 37354"]
[null,null,null,null,null,null,null,null,null,null,null,null,null,null,null,null,null,null,"Moore-Murrell Field","5233 Old Highway 11e, Morristown, TN 37814"]
[null,null,null,null,null,null,null,null,null,null,null,null,null,null,null,null,null,null,"Murfreesboro Municipal Airport","1932 Memorial Blvd, Murfreesboro, TN 37129"]
[null,null,null,null,null,null,null,null,null,null,null,null,null,null,null,null,null,null,"Music City Executive Airport","1475 Airport Rd, Gallatin, TN 37066"]
[null,null,null,null,null,null,null,null,null,null,null,null,null,null,null,null,null,null,"Nashville International Airport","1 Terminal Drive Suite 501, Nashville, TN 37214"]
[null,null,null,null,null,null,null,null,null,null,null,null,null,null,null,null,null,null,"New Tazewell Municipal","413 1st Ave, New Tazewell, TN 37825 "]
[null,null,null,null,null,null,null,null,null,null,null,null,null,null,null,null,null,null,"Oak Ridge Airport","P.O. Box 1, Oak Ridge, TN 37831"]
[null,null,null,null,null,null,null,null,null,null,null,null,null,null,null,null,null,null,"Perry County Airport","585 Airport Road, Linden, 37096"]
[null,null,null,null,null,null,null,null,null,null,null,null,null,null,null,null,null,null,"Portland Municipal Airport","601 Airport Rd, Portland, TN 37148"]
[null,null,null,null,null,null,null,null,null,null,null,null,null,null,null,null,null,null,"Puckett Gliderport","4689 US-41A, Eagleville, TN 37060"]
[null,null,null,null,null,null,null,null,null,null,null,null,null,null,null,null,null,null,"Robert Sibley Airport","2282 Airport Rd, Selmer, TN 38375"]
[null,null,null,null,null,null,null,null,null,null,null,null,null,null,null,null,null,null,"Rockwood Municipal Airport","258 Rockwood Airport Dr, Rockwood, TN 37854"]
[null,null,null,null,null,null,null,null,null,null,null,null,null,null,null,null,null,null,"Savannah-Hardin County Airport","100 Airport Ln, Savannah, TN 38372"]
[null,null,null,null,null,null,null,null,null,null,null,null,null,null,null,null,null,null,"Scott Municipal Airport","2263 Airport Rd, Oneida, TN 37841"]
[null,null,null,null,null,null,null,null,null,null,null,null,null,null,null,null,null,null,"Sgt. Lee Russell Carroll County Airport","535 Airport Ln, McKenzie TN 38201"]
[null,null,null,null,null,null,null,null,null,null,null,null,null,null,null,null,null,null,"Shelbyville Municipal Airport (Bomar Field)","2828 Highway 231 N, Shelbyville, TN 37160"]
[null,null,null,null,null,null,null,null,null,null,null,null,null,null,null,null,null,null,"Smithville Municipal Airport","338 Airport Ln, Smithville, TN 37166"]
[null,null,null,null,null,null,null,null,null,null,null,null,null,null,null,null,null,null,"Smyrna Airport","278 Doug Warpoole Rd, Smyrna, TN 37167"]
[null,null,null,null,null,null,null,null,null,null,null,null,null,null,null,null,null,null,"Springfield-Robertson County Airport","4432 Airport Rd, Springfield, TN 37172"]
[null,null,null,null,null,null,null,null,null,null,null,null,null,null,null,null,null,null,"State owned","2030 State Route 213, Tiptonville, TN 38079"]
[null,null,null,null,null,null,null,null,null,null,null,null,null,null,null,null,null,null,"Tri-Cities Regional Airport","2525 Highway 75, Ste 301, Blountville, TN 37617 "]
[null,null,null,null,null,null,null,null,null,null,null,null,null,null,null,null,null,null,"Tullahoma Regional Airport","807 William Northern Blvd., Tullahoma, TN 37388"]
[null,null,null,null,null,null,null,null,null,null,null,null,null,null,null,null,null,null,"University of the South-Franklin County Airport","262 Airport Road, Sewanee, TN 37375"]
[null,null,null,null,null,null,null,null,null,null,null,null,null,null,null,null,null,null,"Upper Cumberland Regional Airport","750 Airport Rd, Sparta, TN 38583"]
[null,null,null,null,null,null,null,null,null,null,null,null,null,null,null,null,null,null,"Warren County Memorial Airport","4187 Nashville Hwy, McMinnville, TN 37110"]
[null,null,null,null,null,null,null,null,null,null,null,null,null,null,null,null,null,null,"William B. Greene Regional Airport","415 Highway 91, Elizabethton, TN 37643"]
[null,null,null,null,null,null,null,null,null,null,null,null,null,null,null,null,null,null,"William L.Whitehurst Field","800 Airport Rd, Boivar, TN 38008"]
[null,null,null,null,null,null,null,null,null,null,null,null,null,null,null,null,null,null,"Winchester Municipal Airport","420 Aviation Dr, Winchester, TN 37398"]